Cogmind - Beta 14 @@@ ROGUE MODE // 2024.09.04 @ 19:12:44 Player: Squagnar Result: Destroyed by Y-54 Guardian with Flak Gun Performance ------------- Evolutions (3) 1500 Regions Visited (6) 1200 Robots Destroyed (53) 265 Value Destroyed (1521) 1521 Prototype IDs (3) 60 Alien Tech Used (0) 0 Bonus (2) 2 TOTAL SCORE: 4548 Bonus ------- High Alert Combat Kills 2 Cogmind --------- Core Integrity 0/700 Matter 93/300 Energy 100/100 System Corruption 10% Temperature Cool (18) Movement Core (50) Location -7/Factory Parts ------- > --- POWER (1) -------- (None) > --- PROPULSION (5) --- (None) > --- UTILITY (5) ------ Visual Processing Unit Improved Signal Interpreter Advanced Targeting Computer Core Analyzer > --- WEAPON (2) ------- (None) > --- INVENTORY (5) ---- Light Deuterium Engine Light Nuclear Core Tractor Beam Precision Beam Rifle Peak State ------------ > --- POWER ------------ Micro Nuclear Core > --- PROPULSION ------- Carbon-fiber Leg Carbon-fiber Leg Carbon-fiber Leg Cesium-ion Thruster > --- UTILITY ---------- Visual Processing Unit Improved Signal Interpreter Advanced Targeting Computer Core Analyzer Improved Medium Armor Plating > --- WEAPON ----------- Heavy Ion Cannon Advanced Assault Cannon > --- INVENTORY -------- Light Deuterium Engine Light Nuclear Core Tractor Beam Heavy Rocket Launcher [Rating: 41] Favorites ----------- Power Light Nuclear Core Engine Ion Engine Power Core Light Nuclear Core Propulsion Carbon-fiber Leg Leg Carbon-fiber Leg Hover Unit Gravmag System Flight Unit Flight Unit Utility Advanced Targeting Computer Device Improved Terrain Scanner Storage Medium Storage Unit Processor Advanced Targeting Computer Protection Hardened Light Armor Plating Weapon Light Assault Rifle Energy Gun Advanced Beam Rifle Energy Cannon Heavy Ion Cannon Ballistic Gun Light Assault Rifle Ballistic Cannon Advanced Assault Cannon Launcher Heavy Rocket Launcher Slashing Weapon Scythe Build | -11 -10 -9 -8 -7 -7 -7 ------- Run | Yrd Mat Mat Mat Fac Was Fac Slots Evolved 6 | . . 2 2 2 . . Power . | . . . . . . . Propulsion 3 | . . 2 1 . . . Utility 3 | . . . 1 2 . . Weapon . | . . . . . . . Parts Attached 81 | 7 7 16 28 11 1 11 Power 9 | 1 1 1 4 1 . 1 Engine 5 | 1 1 1 2 . . . Core 4 | . . . 2 1 . 1 Reactor . | . . . . . . . Propulsion 34 | 2 3 10 11 3 1 4 Treads . | . . . . . . . Leg 12 | 2 . . 6 1 . 3 Wheel . | . . . . . . . Hover 5 | . . . 5 . . . Flight 17 | . 3 10 . 2 1 1 Utility 17 | 2 2 2 6 4 . 1 Device 6 | 2 . . 4 . . . Storage 2 | . 1 . 1 . . . Processor 6 | . 1 1 . 4 . . Hackware . | . . . . . . . Protection 3 | . . 1 1 . . 1 Artifact . | . . . . . . . Weapon 21 | 2 1 3 7 3 . 5 Energy Gun 6 | . . . 3 2 . 1 Energy Cannon 2 | . . . 1 . . 1 Ballistic Gun 8 | 2 1 3 2 . . . Ballistic Cannon 2 | . . . . . . 2 Launcher 1 | . . . . . . 1 Special Weapon . | . . . . . . . Impact Weapon . | . . . . . . . Slashing Weapon 2 | . . . 1 1 . . Piercing Weapon . | . . . . . . . Special Melee Weapon . | . . . . . . . Unidentified Prototypes 3 | . . . 2 1 . . Parts Lost 32 | . . 4 8 9 1 10 Power 3 | . . 1 . 1 . 1 Propulsion 16 | . . 2 3 5 1 5 Utility 7 | . . 1 4 1 . 1 Weapon 6 | . . . 1 2 . 3 Highest Loss Streak 9 | . . 1 3 9 1 5 To Critical Strikes . | . . . . . . . Average Slot Usage (%) 87 | . 99 96 89 69 65 87 Engine 4 | . 14 9 3 . . . Core 4 | . . . 5 6 7 5 Leg 17 | . 23 . 27 9 3 18 Hover 2 | . . . 8 . . . Flight 10 | . 4 43 4 1 7 10 Device 5 | . 16 1 8 1 . . Storage 3 | . 11 . 3 3 . . Processor 18 | . . 11 9 30 38 34 Protection 2 | . . 8 1 . . 2 Energy Gun 4 | . . . 5 14 8 . Energy Cannon 2 | . . . 3 . . 5 Ballistic Gun 8 | . 28 22 4 . . . Ballistic Cannon 1 | . . . . . . 4 Slashing Weapon 1 | . . . 4 . . . Peak Build Rating 41 | 9 9 13 32 37 33 41 Average Rating 20 | 8 7 11 26 28 27 35 On Entrance 16 | . 9 7 12 31 33 22 Naked Turns . | . . . . . . . Heaviest Build 27 | 10 14 12 21 20 9 27 Greatest Support 75 | 20 20 16 75 70 15 45 Greatest Overweight (x) 6 | . 3 . 1 6 1 1 Average Overweight (x) . | . . . . . . . Largest Inventory Capacity 10 | 5 8 5 10 10 5 5 Average Capacity 5 | 5 7 5 6 7 5 5 Most Carried 10 | 4 8 5 10 9 5 5 Average Carried 4 | 2 5 4 5 5 5 2 Final Capacity 10 | 5 5 5 10 5 5 5 Final Carried 10 | 4 5 5 10 5 5 4 Class Distribution -------------------- 81% | Mutant 9% | Scavenger-Sprinter 9% | Scavenger-Mutant Dominant Class ---------------- Mutant | -10/Materials Scavenger-Sprinter | -9/Materials Mutant | -8/Materials Mutant | -7/Factory Mutant | -7/Waste Mutant | -7/Factory Resources | -11 -10 -9 -8 -7 -7 -7 ----------- Run | Yrd Mat Mat Mat Fac Was Fac Matter Collected 1304 | 286 90 402 307 40 . 179 Remotely 201 | . . . 201 . . . Salvage Created 1897 | 131 216 425 526 192 . 407 Parts 121 | 10 10 38 30 9 . 24 Haulers Intercepted 2 | . . . 1 . . 1 Recyclers Shooed . | . . . . . . . Parts Field Recycled . | . . . . . . . Retrieved Matter . | . . . . . . . Parts Self-Destructed . | . . . . . . . Prevented . | . . . . . . . Kills | -11 -10 -9 -8 -7 -7 -7 ------- Run | Yrd Mat Mat Mat Fac Was Fac Combat Hostiles Destroyed 38 | . 5 13 9 3 . 8 Melee 6 | . . . 5 1 . . Guns 22 | . 5 13 2 1 . 1 Cannons 5 | . . . 1 . . 4 AOE 3 | . . . . . . 3 Classes Destroyed 13 | 2 2 3 3 1 . 2 Worker 1 | . . . . . . 1 Tunneler 3 | 2 . . . . . 1 Hauler 2 | . . . 1 . . 1 Recycler 3 | 1 1 1 . . . . Operator 2 | . . . 1 . . 1 Watcher 4 | . . 1 2 1 . . Swarmer 13 | . 3 8 2 . . . Grunt 12 | . 2 2 4 1 . 3 Brawler 2 | . . 1 . . . 1 Duelist 1 | . . . . 1 . . Sentry 8 | . . 2 2 1 . 3 Programmer 1 | . . . . . . 1 Heavy 1 | . . . 1 . . . Best Kill Streak 8 | 2 4 5 3 3 . 8 Combat Bots Only 6 | . 3 5 3 2 . 6 Max Kills in Single Turn 3 | 1 2 2 1 1 . 3 Gunslinging 1 | . 1 1 . . . . Exploded 1 | . . . . . . 1 Melee 1 | . . . 1 1 . . Uniques/NPCs Destroyed . | . . . . . . . Combat | -11 -10 -9 -8 -7 -7 -7 -------- Run | Yrd Mat Mat Mat Fac Was Fac Hostile Shots Fired 562 | . 21 85 87 146 2 221 Missed 216 | . 10 33 34 54 1 84 Damage Taken 4406 | . 154 530 1124 1131 49 1418 Core 1091 | . 30 75 284 355 49 298 Absorbed by Shields . | . . . . . . . Core Remaining (%) 79 | 100 88 81 48 . . . Volleys Fired 153 | 4 25 42 37 9 3 33 Largest 2 | 2 2 2 2 2 2 2 Hottest 122 | 40 40 43 122 122 122 113 Shots Fired 275 | 8 50 84 58 18 5 52 Gun 207 | 8 50 84 35 18 5 7 Cannon 57 | . . . 23 . . 34 Launcher 11 | . . . . . . 11 Special . | . . . . . . . Kinetic 186 | 8 50 84 31 . . 13 Thermal 55 | . . . 4 18 5 28 Explosive 11 | . . . . . . 11 Electromagnetic 23 | . . . 23 . . . Robot Hit Streak 12 | 5 8 9 9 6 11 12 Robot Miss Streak 9 | 1 4 9 3 2 . 3 Penetration Max . | . . . . . . . Secondary Targets 5 | . 2 3 . . . . Max Gunslinging Chain 1 | . 1 1 . . . . Shots Hit Robots 204 | 5 31 53 54 24 5 32 Core Hits 94 | 4 12 23 20 10 1 24 Critical Kills . | . . . . . . . Critical Parts Destroyed . | . . . . . . . Critical Strikes 7 | . . . 1 6 . . Burn 3 | . . . . 3 . . Sever 4 | . . . 1 3 . . Melee Attacks 33 | . . . 21 12 . . Impact . | . . . . . . . Slashing 33 | . . . 21 12 . . Piercing . | . . . . . . . Sneak Attacks 1 | . . . 1 . . . Combat Hostiles . | . . . . . . . Follow-up Attacks . | . . . . . . . Damage Inflicted 4270 | 59 337 625 1369 572 100 1208 Guns 1787 | 59 337 625 226 320 100 120 Cannons 1119 | . . . 504 . . 615 Explosions 586 | . . . 113 . . 473 Melee 773 | . . . 526 247 . . Ramming 5 | . . . . 5 . . Kinetic 1496 | 59 337 625 186 . . 289 Thermal 1019 | . . . 153 320 100 446 Explosive 473 | . . . . . . 473 Electromagnetic 504 | . . . 504 . . . Impact . | . . . . . . . Slashing 773 | . . . 526 247 . . Piercing . | . . . . . . . Highest Corruption 10 | . . . 2 . 10 10 Average Corruption 6 | . . . 2 . 10 10 Corruption Purged . | . . . . . . . Corruption Blocked . | . . . . . . . Effects 25 | . . . 4 . 7 14 Message Errors 3 | . . . 1 . . 2 Matter Fused 7 | . . . 1 . 2 4 Heat Flow Errors 3 | . . . 1 . . 2 Energy Discharges 1 | . . . . . . 1 Parts Rejected 1 | . . . . . 1 . Parts Fused 1 | . . . . . . 1 Data Loss (minor) 4 | . . . . . 1 3 Misfires 2 | . . . 1 . . 1 Misdirections 2 | . . . . . 2 . Weapon Failures 1 | . . . . . 1 . Overload Shots . | . . . . . . . Overflow Damage 206 | . . . 173 . . 33 Projectiles 41 | . . . 41 . . . Explosions 113 | . . . 80 . . 33 Melee 52 | . . . 52 . . . Knockbacks 2 | . . . . . . 2 Impact . | . . . . . . . Kinetic 1 | . . . . . . 1 Secondary 1 | . . . . . . 1 Self-Inflicted Damage 318 | . . . 182 . . 136 Shots 6 | . . . 2 . . 4 Rammed . | . . . . . . . Targets Rammed 1 | . . . . 1 . . Kicked 1 | . . . . 1 . . Crushed . | . . . . . . . Highest Temperature 265 | . 16 43 256 183 78 265 Average Temperature 51 | . 8 14 47 70 43 98 Received Heat Transfer 1035 | . 111 105 234 234 . 351 Siege Activations . | . . . . . . . Robots Corrupted 1 | . . . 1 . . . Combat Hostiles 1 | . . . 1 . . . Parts Fried 4 | . . . 4 . . . Impact Corruptions . | . . . . . . . Robots Melted 1 | . . . . 1 . . Combat Hostiles 1 | . . . . 1 . . Parts Melted 2 | . . . . 2 . . Heat Transferred 1789 | . . . 124 814 185 666 Parts Sabotaged . | . . . . . . . Parts Stolen . | . . . . . . . Parts Stripped . | . . . . . . . Power Chain Reactions . | . . . . . . . Alert | -11 -10 -9 -8 -7 -7 -7 ------- Run | Yrd Mat Mat Mat Fac Was Fac Peak Influence 424 | 15 140 424 283 109 53 231 Initial 178 | . . 59 178 107 38 26 Average 109 | 6 57 219 197 97 35 117 Maximum Alert Level 2 | . . 2 1 . . 1 Low Security (%) 82 | 100 100 46 51 100 100 95 Level 1 16 | . . 38 48 . . 4 Level 2 1 | . . 15 . . . . Level 3 . | . . . . . . . Level 4 . | . . . . . . . Level 5 . | . . . . . . . High Security . | . . . . . . . Max Security . | . . . . . . . Squads Dispatched 5 | . . . 1 . . 4 Investigation . | . . . . . . . Extermination 1 | . . . . . . 1 Reinforcement 4 | . . . 1 . . 3 Assault . | . . . . . . . Garrison . | . . . . . . . Intercept . | . . . . . . . Searches Triggered . | . . . . . . . Construction Impeded . | . . . . . . . Haulers Reinforced 2 | . . . . . . 2 Active Scanning Responses . | . . . . . . . Cargo Convoy Interrupts . | . . . . . . . Stealth | -11 -10 -9 -8 -7 -7 -7 --------- Run | Yrd Mat Mat Mat Fac Was Fac Distress Signals 2 | . . 1 . . . 1 Communications Jammed . | . . . . . . . Distress Signals . | . . . . . . . Times Spotted 73 | . 7 19 21 8 6 12 Peak Tracking Total 6 | . 3 6 6 5 6 5 Tactical Retreats 6 | . . 5 1 . . . Traps | -11 -10 -9 -8 -7 -7 -7 ------- Run | Yrd Mat Mat Mat Fac Was Fac Traps Triggered 3 | . . . 1 2 . . Indirectly . | . . . . . . . Trap Hack Attempts . | . . . . . . . Triggered . | . . . . . . . Disarmed 1 | . . 1 . . . . Reprogrammed . | . . . . . . . Reused . | . . . . . . . Traps Extracted . | . . . . . . . Installed . | . . . . . . . Triggered 1 | . . . 1 . . . Machines | -11 -10 -9 -8 -7 -7 -7 ---------- Run | Yrd Mat Mat Mat Fac Was Fac Machines Disabled 4 | . . . 2 . . 2 Max in Single Turn 2 | . . . 2 . . 2 Garrison Access 1 | . . . . 1 . . Machines Repaired . | . . . . . . . Machines Dismantled . | . . . . . . . Machines Sabotaged . | . . . . . . . Overloaded Fab Kills . | . . . . . . . Hacking | -11 -10 -9 -8 -7 -7 -7 --------- Run | Yrd Mat Mat Mat Fac Was Fac Machines Accessed 16 | . . 7 4 1 . 4 Terminals 15 | . . 7 4 . . 4 Fabricators . | . . . . . . . Repair Stations . | . . . . . . . Recycling Units . | . . . . . . . Scanalyzers . | . . . . . . . Garrison Access 1 | . . . . 1 . . Total Hacks 42 | . . 24 10 2 . 6 Successful 25 | . . 15 7 1 . 2 Failed 16 | . . 8 3 1 . 4 Catastrophic 5 | . . 3 . . . 2 Database Lockouts 1 | . . 1 . . . . Manual 5 | . . 2 3 . . . Terminals 40 | . . 24 10 . . 6 Fabricators . | . . . . . . . Repair Stations . | . . . . . . . Recycling Units . | . . . . . . . Scanalyzers . | . . . . . . . Garrison Access 2 | . . . . 2 . . Terminal Hacks 24 | . . 15 7 . . 2 Record 3 | . . 3 . . . . Open DSF 1 | . . . . . . 1 Branch Access Points 1 | . . 1 . . . . Emergency Access Points 1 | . . . . . . 1 Terminal Index 1 | . . . 1 . . . Scanalyzer Index 1 | . . 1 . . . . Alert Level 6 | . . 3 3 . . . Unreport Threat 2 | . . 1 1 . . . Locate Traps 2 | . . 2 . . . . Disarm Traps 1 | . . 1 . . . . Dispatch Records 1 | . . . 1 . . . Investigation Status 2 | . . 2 . . . . Reinforcement Status 1 | . . . 1 . . . Hauler Manifests 1 | . . 1 . . . . Fabricator Hacks . | . . . . . . . Repair Station Hacks . | . . . . . . . Recycling Unit Hacks . | . . . . . . . Scanalyzer . | . . . . . . . Garrison Access Hacks 1 | . . . . 1 . . Seal Access 1 | . . . . 1 . . Unauthorized Hacks . | . . . . . . . Terminals . | . . . . . . . Fabricators . | . . . . . . . Repair Stations . | . . . . . . . Recycling Units . | . . . . . . . Scanalyzers . | . . . . . . . Garrison Access . | . . . . . . . Data Cores Recovered 2 | . . . 1 . . 1 Used . | . . . . . . . Hacking Detections 13 | . . 5 4 1 . 3 Full Trace Events . | . . . . . . . Feedback Events . | . . . . . . . Feedback Blocked . | . . . . . . . Robot Schematics Acquired . | . . . . . . . Robots Built . | . . . . . . . Authchips . | . . . . . . . Time . | . . . . . . . Total Robot Build Rating . | . . . . . . . Part Schematics Acquired . | . . . . . . . Parts Built . | . . . . . . . Authchips . | . . . . . . . Time . | . . . . . . . Total Part Build Rating . | . . . . . . . Parts Repaired . | . . . . . . . Time . | . . . . . . . Parts Recycled . | . . . . . . . Recycled Matter . | . . . . . . . Retrieved Matter . | . . . . . . . Retrieved Components . | . . . . . . . Parts Scanalyzed . | . . . . . . . Part Schematics Acquired . | . . . . . . . Parts Damaged . | . . . . . . . Bothacking | -11 -10 -9 -8 -7 -7 -7 ------------ Run | Yrd Mat Mat Mat Fac Was Fac Used RIF Installer . | . . . . . . . Robots Hacked . | . . . . . . . Non-combat . | . . . . . . . Combat . | . . . . . . . Robot Hacks Applied . | . . . . . . . Relay Couplers Released . | . . . . . . . Fabnet Peak Effective % . | . . . . . . . Robots Rewired . | . . . . . . . Allies Hacked . | . . . . . . . Hacks Repelled . | . . . . . . . Allies | -11 -10 -9 -8 -7 -7 -7 -------- Run | Yrd Mat Mat Mat Fac Was Fac Total Allies 1 | . . . . . 1 . Largest Group 1 | . . . . . 1 . Highest-Rated Group 31 | . . . . . 31 . Highest-Rated Ally 31 | . . . . . 31 . Total Orders . | . . . . . . . Ally Attacks 1 | . . . . . 1 . Total Damage . | . . . . . . . Kills . | . . . . . . . Allies Corrupted . | . . . . . . . Allies Melted . | . . . . . . . Intel | -11 -10 -9 -8 -7 -7 -7 ------- Run | Yrd Mat Mat Mat Fac Was Fac Robot Analysis Total . | . . . . . . . Derelict Logs Recovered . | . . . . . . . Drone Launches . | . . . . . . . Drone Recoveries . | . . . . . . . Exploration | -11 -10 -9 -8 -7 -7 -7 ------------- Run | Yrd Mat Mat Mat Fac Was Fac Turns Passed 2961 | 679 338 285 724 341 89 505 Spaces Moved 2231 | 314 235 355 633 199 131 364 Core 38 | 8 . . . 8 14 8 Treads . | . . . . . . . Legs 1270 | 306 156 . 285 191 27 305 Wheels . | . . . . . . . Hover 278 | . . . 278 . . . Flight 645 | . 79 355 70 . 90 51 Fastest Speed 31 | 50 37 31 31 120 35 34 Average Speed 87 | 118 101 31 78 132 59 109 Slowest Speed 350 | 120 290 34 190 350 120 120 Overloaded Moves . | . . . . . . . Propulsion Burnouts . | . . . . . . . Robots Hopped . | . . . . . . . Cave-ins Triggered . | . . . . . . . Exploration Rate (%) 38 | 29 41 32 52 7 94 15 Regions Visited 6 Branch Regions . Pre-discovered Areas . | . . . . . . . Known Exits Taken . | . . . . . . . Unknown Exits Taken 4 | 1 1 1 1 . . . Scrap Searched . | . . . . . . . Spaces Dug . | . . . . . . . Terrain Destroyed 164 | . . . 52 . . 112 Melee . | . . . . . . . Projectile 3 | . . . . . . 3 AOE 161 | . . . 52 . . 109 Terrain Rammed . | . . . . . . . Walls Destroyed . | . . . . . . . Machines Disabled . | . . . . . . . Actions | -11 -10 -9 -8 -7 -7 -7 --------- Run | Yrd Mat Mat Mat Fac Was Fac Total 2918 | 614 289 452 772 240 134 417 Wait 330 | 279 9 28 14 . . . Move 2226 | 313 234 354 632 199 130 364 Hop . | . . . . . . . Pick Up 55 | 11 8 6 19 5 . 6 Fast Attach 25 | . . 2 17 2 1 3 Attach 30 | 7 3 4 4 7 . 5 Detach 2 | . 1 . . . . 1 Swap 26 | . 4 10 7 2 . 3 Drop 37 | . 5 6 21 3 . 2 Fire 153 | 4 25 42 37 9 3 33 Melee 33 | . . . 21 12 . . Ram . | . . . . . . . Kick 1 | . . . . 1 . . Crush . | . . . . . . . Escape Stasis . | . . . . . . . Rewire . | . . . . . . . Trap . | . . . . . . . Miscellaneous . | . . . . . . . Route ------- -11/Scrapyard -10/Materials (discovered 3 exits: *Mat / [*Min x2]) -9/Materials (discovered 5 exits: *Mat / Min x2 / Sto x2) -8/Materials -7/Factory -7/Waste -7/Factory History --------- Turn | Location | Event 19 | -11/Scrapyard | Discovered new exit (range 15) 680 | -11/Scrapyard | Entered Materials 680 | -10/Materials | Discovered new exit (range 7) 681 | -10/Materials | Build established: Mutant 809 | -10/Materials | Discovered new exit (range 16) 925 | -10/Materials | Discovered new exit (range 15) 1018 | -10/Materials | Entered another Materials area 1018 | -9/Materials | Evolved 2 slots: Propulsion x2 1087 | -9/Materials | Central database locked down 1293 | -9/Materials | Discovered new exit (range 15) 1296 | -9/Materials | Identified exit to Mines 1296 | -9/Materials | Identified exit to Storage 1303 | -9/Materials | Entered another Materials area 1303 | -8/Materials | Evolved 2 slots: Propulsion x1, Utility x1 1497 | -8/Materials | Lost 3 parts (2n1u) 1953 | -8/Materials | Discovered new exit (range 16) 2026 | -8/Materials | Core integrity fell below 50% 2027 | -8/Materials | Entered Factory 2027 | -7/Factory | Evolved 2 slots: Utility x2 2127 | -7/Factory | Lost 9 parts (1p5n1u2w) 2134 | -7/Factory | Core integrity fell below 50% 2260 | -7/Factory | Discovered new exit (range 16) 2368 | -7/Factory | Sucked down chute 2368 | -7/Factory | Entered Waste 2369 | -7/Waste | Met a frightened Derelict 2378 | -7/Waste | Spotted C-40 Crusher 2383 | -7/Waste | EMP discharged 2383 | -7/Waste | System corruption reached 10% 2400 | -7/Waste | Spotted C-40 Crusher 2410 | -7/Waste | Crushed by Compactor (1 part destroyed, 2 dropped) 2429 | -7/Waste | Spotted C-40 Crusher 2430 | -7/Waste | Spotted C-40 Crusher 2431 | -7/Waste | Spotted C-40 Crusher 2448 | -7/Waste | Spotted C-40 Crusher 2451 | -7/Waste | Discovered new exit (range 18) 2456 | -7/Waste | Identified exit to Factory 2457 | -7/Waste | Entered Factory 2891 | -7/Factory | Lost 4 parts (1p2n1w) 2944 | -7/Factory | Core integrity fell below 20% 2962 | -7/Factory | Destroyed by Y-54 Guardian with Flak Gun Last Messages --------------- K-01 Serf cleans the Neutrino Reactor. A-02 Transporter calls for reinforcements. ALERT: Hostile activity reported, dispatching reinforcements to area. A-02 Transporter sends out distress signal. K-01 Serf cleans the Neutrino Reactor. Imp. Medium Armor Plating destroyed. K-01 Serf cleans the Neutrino Reactor. Hvy. Ion Cannon destroyed. Destroyed Hvy. Ion Cannon. K-01 Serf cleans the Neutrino Reactor. A-02 Transporter destroyed. Carbon-fiber Leg destroyed. System corrupted: Matter fused (-10). K-01 Serf cleans the Neutrino Reactor. The unstable cave ceiling collapses. Hvy. Rocket Launcher destroyed. Carbon-fiber Leg destroyed. The unstable cave ceiling collapses. Acquired Prototype Energy Gun. Map ----- +----------------------------------------------------+ | ?????????????????????????????????????????????????? | | ?????????????????????????????????????????????????? | | ?????????????????????????????????????????????????? | | ?????????????????????????????????????????????????? | | ?????????????????????????????????????????????????? | | ?????????????????????????????????????????????????? | | ?????????????????????????????????????????????????? | | ?????????????????????????????????????????????????? | | ?????????????????????????????????????????????????? | | ?????????????????????????????????????????????????? | | ?????????????????????????????????????????????????? | | ?????????????????????????????????? ??????????????? | | ????????????????????????????????? "?????????????? | | ????????????????????????####???? ""????????????? | | ???????????????????????? #??? == ""????????????? | | ???????????????????????? #??" == ????????????? | | ???????????????????????? ? "" == ""????????????? | | ??????????????????????? ? """ ??????????? | | ??????????????????????? # """ #????????? | | ??????????######+####### # #????????? | | ??????????# #????????? | | ??????????# #????????? | | ??????????# [ ??????????? | | ??????????# [ ##????????????? | | ??????????# ## #????????????? | | ??????????# @[[= """#????????????? | | ??????????# """#????????????? | | ??????????# [ """#????????????? | | ??????????# #????????????? | | ??????????# Y [ = #????????????? | | ??????????# #######????????????? | | ??????????# # r #?????????????????? | | ??????????############ #?????????????????? | | ??????############ #?????????????????? | | ?????? ###?????????????????? | | ????? ^ r ###???????????????????? | | ???????# #?????????????????????? | | ????????? """ """ uu #?????????????????????? | | ??????????""" """ #####????????????????????## | | ???????# """ """ #???????????????????????## | | ???????# u#???????????????????????# | | ???????# """ """ #???####????????????????# | | ??????? """ """ #???# ?????????????# | | ###### """ """ #???# """"""" #?????????# | | #???# """"""" #?????????## | | """ """ ##??# """"""" #?????????# | | """ """ #??# """"""" #??????????# | | ###### """ """ #??# ?????????????# | | ## #??# ] ???????????????# | | "" ## """ """ #??# ?????????????????# | +----------------------------------------------------+ Best States ------------- Heat Dissipation 44 Energy Generation 15 Energy Capacity 265 Matter Stores 300 Matter Capacity 300 Sight Range 18 Robot Scan Range 15 Terrain Scan Range 16 Terrain Scan Density 110 Armor Coverage 225 Evasion (%) 63 Targeting Accuracy 8 Core Analysis 6 Item Schematics ----------------- None Robot Schematics ------------------ None Fabricated ------------ Nothing Alien Tech Used ----------------- None Achievements -------------- Power Corrupts Challenges ------------ None Game ------ Seed GodScatterEngine Manual? 0 Play Time 00:44:05 Cumulative 4.4 hours Start 2024.09.04 @ 18:28:27 End 2024.09.04 @ 19:12:44 Sessions 1 Manual Loads 0 Difficulty Rogue Special Mode None Game No. 4 Rogue 2 Adventurer 2 Explorer 0 Win Type - Total 0 Types 0/0/0/0/0/0/0/0/0 Lore% 5 Gallery% 9 Achievement% 11 Wizard Run 0 Options --------- Layout 1 ASCII 0 Keyboard 0 Movement Mouse Keybinds 0 Fullscreen 1 Font 24/Proggy Map View 50x35 Zoom Use 0% Tactical HUD 0 Map Filters NONE Filters NONE Steam 1 RUN: c05c6092-cace-4e6a-8657-ad8a21577dca